fUSD/lending_fUSD_20260501
["ID","MTS","AMOUNT","RATE_DAILY","PERIOD"]
[421425084,1777625831000,151.0,0.0001,2]
[421425083,1777625831000,500.0,0.0001,2]
[421425088,1777625832000,151.0,0.0001,2]
[421425087,1777625832000,500.0,0.0001,2]
[421425086,1777625832000,151.0,0.0001,2]
[421425089,1777625833000,500.0,0.0001,2]
[421425091,1777625833000,500.0,0.0001,2]
[421425090,1777625833000,151.0,0.0001,2]
[421425095,1777625834000,500.0,0.0001,2]
[421425094,1777625834000,151.0,0.0001,2]
[421425093,1777625834000,500.0,0.0001,2]
[421425092,1777625834000,151.0,0.0001,2]
[421425097,1777625835000,500.0,0.0001,2]
[421425096,1777625835000,151.0,0.0001,2]
[421425098,1777625836000,151.0,0.0001,2]
[421425099,1777625837000,500.0,9.898e-05,2]
[421425100,1777625837000,500.0,9.898e-05,2]
[421425103,1777625837000,500.0,9.898e-05,2]
[421425101,1777625837000,500.0,9.898e-05,2]
[421425102,1777625837000,500.0,9.898e-05,2]
[421425110,1777625838000,500.0,9.898e-05,2]
[421425111,1777625838000,500.0,9.898e-05,2]
[421425109,1777625838000,500.0,9.898e-05,2]
[421425108,1777625838000,500.0,9.898e-05,2]
[421425112,1777625838000,500.0,9.898e-05,2]
[421425107,1777625838000,500.0,9.898e-05,2]
[421425105,1777625838000,310.99044953,9.898e-05,2]
[421425104,1777625838000,189.00955047,9.898e-05,2]
[421425106,1777625838000,500.0,9.898e-05,2]
[421425113,1777625838000,500.0,9.898e-05,2]
[421425114,1777625838000,500.0,9.898e-05,2]
[421425116,1777625838000,500.0,9.898e-05,2]
[421425124,1777625838000,500.0,9.898e-05,2]
[421425123,1777625838000,500.0,9.898e-05,2]
[421425122,1777625838000,500.0,9.898e-05,2]
[421425121,1777625838000,291.99772182,9.898e-05,2]
[421425125,1777625838000,397.02182865,9.898e-05,2]
[421425118,1777625838000,500.0,9.898e-05,2]
[421425119,1777625838000,500.0,9.898e-05,2]
[421425117,1777625838000,500.0,9.898e-05,2]
[421425115,1777625838000,500.0,9.898e-05,2]
[421425120,1777625838000,500.0,9.898e-05,2]
[421425129,1777625839000,500.0,9.898e-05,2]
[421425128,1777625839000,500.0,9.898e-05,2]
[421425127,1777625839000,500.0,9.898e-05,2]
[421425126,1777625839000,102.97817135,9.898e-05,2]
[421425130,1777625841000,500.0,0.0001,2]
[421425132,1777625842000,500.0,0.0001,2]
[421425131,1777625842000,500.0,0.0001,2]
[421425133,1777625843000,500.0,0.0001,2]
[421425134,1777625844000,500.0,0.0001,2]
[421425135,1777625844000,500.0,0.0001,2]
[421425136,1777625845000,500.0,0.0001,2]
[421425137,1777625846000,151.0,0.0001,2]
[421425138,1777625854000,500.0,9.898e-05,2]
[421425139,1777625854000,500.0,9.898e-05,2]
[421425141,1777625854000,150.99,9.898e-05,2]
[421425140,1777625854000,349.01,9.898e-05,2]
[421425142,1777625854000,500.0,9.898e-05,2]
[421425144,1777625854000,500.0,9.898e-05,2]
[421425143,1777625854000,500.0,9.898e-05,2]
[421425145,1777625854000,500.0,9.898e-05,2]
[421425146,1777625854000,500.0,9.898e-05,2]
[421425148,1777625854000,500.0,9.898e-05,2]
[421425147,1777625854000,500.0,9.898e-05,2]
[421425149,1777625854000,500.0,9.898e-05,2]
[421425151,1777625854000,349.02,9.898e-05,2]
[421425150,1777625854000,500.0,9.898e-05,2]
[421425153,1777625855000,291.99772183,9.898e-05,2]
[421425152,1777625855000,150.98,9.898e-05,2]
[421425154,1777625864000,253.31640521,9.898e-05,2]
[421425171,1777625869000,10000.01,9.61e-05,2]
[421425155,1777625869000,4303.71587296,9.61e-05,2]
[421425157,1777625869000,5000.01,9.61e-05,2]
[421425156,1777625869000,5000.01,9.61e-05,2]
[421425159,1777625869000,10000.01,9.61e-05,2]
[421425158,1777625869000,8397.03182865,9.61e-05,2]
[421425161,1777625869000,10000.01,9.61e-05,2]
[421425160,1777625869000,10000.01,9.61e-05,2]
[421425163,1777625869000,10000.01,9.61e-05,2]
[421425164,1777625869000,10000.01,9.61e-05,2]
[421425165,1777625869000,10000.01,9.61e-05,2]
[421425166,1777625869000,10000.01,9.61e-05,2]
[421425168,1777625869000,10000.01,9.61e-05,2]
[421425167,1777625869000,10000.01,9.61e-05,2]
[421425169,1777625869000,10000.01,9.61e-05,2]
[421425170,1777625869000,10000.01,9.61e-05,2]
[421425162,1777625869000,10000.01,9.61e-05,2]
[421425172,1777625869000,10000.01,9.61e-05,2]
[421425174,1777626076000,180.42,8.509e-05,2]
[421425177,1777626079000,500.0,0.00030137,120]
[421425176,1777626079000,500.0,0.00029452,120]
[421425183,1777626524000,-150.0,9.19e-05,2]
[421425184,1777626527000,150.0,8.914e-05,2]
[421425186,1777626530000,-435.86416495,9.418e-05,2]
[421425185,1777626530000,-235.657,9.418e-05,2]
[421425190,1777626534000,3191.13,5.45e-05,2]
[421425189,1777626534000,1532.25,5.191e-05,2]
[421425188,1777626534000,1658.88,5.191e-05,2]
[421425187,1777626534000,3191.13,4.931e-05,2]
[421425195,1777626535000,420.95288941,5.969e-05,2]
[421425196,1777626535000,113.72441025,6.229e-05,2]
[421425194,1777626535000,684.66711059,5.969e-05,2]
[421425198,1777626535000,2745.91018406,6.229e-05,2]
[421425191,1777626535000,276.63,5.71e-05,2]
[421425192,1777626535000,2914.5,5.71e-05,2]
[421425193,1777626535000,2085.51,5.969e-05,2]
[421425197,1777626535000,331.49540569,6.229e-05,2]
[421425201,1777626535000,3191.13,6.748e-05,2]
[421425200,1777626535000,2710.90071155,6.488e-05,2]
[421425207,1777626535000,3191.13,8.305e-05,2]
[421425202,1777626535000,3191.13,7.008e-05,2]
[421425204,1777626535000,3191.13,7.527e-05,2]
[421425203,1777626535000,3191.13,7.267e-05,2]
[421425206,1777626535000,3191.13,8.046e-05,2]
[421425205,1777626535000,3191.13,7.786e-05,2]
[421425199,1777626535000,480.22928845,6.488e-05,2]
[421425208,1777626548000,3191.13,8.565e-05,2]
[421425306,1777626667000,-477.81502748,8.824e-05,2]
[421425307,1777626721000,-2713.31497252,8.824e-05,2]
[421425308,1777626721000,-3191.13,9.084e-05,2]
[421425309,1777626721000,-3191.13,9.343e-05,2]
[421425311,1777626721000,-1086.018,9.51e-05,2]
[421425310,1777626721000,-3492.41083505,9.418e-05,2]
[421425313,1777626721000,-274.0,9.609e-05,2]
[421425314,1777626721000,-150.0,9.609e-05,2]
[421425316,1777626721000,-218.25116211,9.609e-05,2]
[421425315,1777626721000,-500.0,9.609e-05,2]
[421425317,1777626721000,-21354.64918931,9.61e-05,2]
[421425312,1777626721000,-3191.13,9.603e-05,2]
[421425323,1777626723000,-500.0,9.609e-05,2]
[421425319,1777626723000,-516.40031467,9.609e-05,2]
[421425320,1777626723000,-177.32148365,9.609e-05,2]
[421425321,1777626723000,-500.0,9.609e-05,2]
[421425324,1777626723000,-500.0,9.609e-05,2]
[421425322,1777626723000,-500.0,9.609e-05,2]
[421425325,1777626723000,-500.0,9.609e-05,2]
[421425318,1777626723000,-590.27712709,9.609e-05,2]
[421425326,1777626723000,-500.0,9.609e-05,2]
[421425328,1777626723000,-500.0,9.609e-05,2]
[421425329,1777626723000,-500.0,9.609e-05,2]
[421425330,1777626723000,-500.0,9.609e-05,2]
[421425331,1777626723000,-500.0,9.609e-05,2]
[421425332,1777626723000,-500.0,9.609e-05,2]
[421425333,1777626723000,-500.0,9.609e-05,2]
[421425334,1777626723000,-500.0,9.609e-05,2]
[421425327,1777626723000,-500.0,9.609e-05,2]
[421425336,1777626724000,-83.16681675,9.609e-05,2]
[421425335,1777626724000,-500.0,9.609e-05,2]
[421425338,1777626724000,-500.0,9.609e-05,2]
[421425337,1777626724000,-416.83318325,9.609e-05,2]
[421425340,1777626724000,-500.0,9.609e-05,2]
[421425341,1777626724000,-500.0,9.609e-05,2]
[421425342,1777626724000,-500.0,9.609e-05,2]
[421425339,1777626724000,-500.0,9.609e-05,2]
[421425344,1777626724000,-500.0,9.609e-05,2]
[421425345,1777626724000,-500.0,9.609e-05,2]
[421425346,1777626724000,-500.0,9.609e-05,2]
[421425348,1777626724000,-500.0,9.609e-05,2]
[421425349,1777626724000,-500.0,9.609e-05,2]
[421425347,1777626724000,-500.0,9.609e-05,2]
[421425350,1777626724000,-500.0,9.609e-05,2]
[421425343,1777626724000,-500.0,9.609e-05,2]
[421425365,1777626725000,-500.0,9.609e-05,2]
[421425364,1777626725000,-500.0,9.609e-05,2]
[421425363,1777626725000,-500.0,9.609e-05,2]
[421425362,1777626725000,-500.0,9.609e-05,2]
[421425361,1777626725000,-500.0,9.609e-05,2]
[421425360,1777626725000,-500.0,9.609e-05,2]
[421425359,1777626725000,-500.0,9.609e-05,2]
[421425355,1777626725000,-500.0,9.609e-05,2]
[421425357,1777626725000,-500.0,9.609e-05,2]
[421425356,1777626725000,-500.0,9.609e-05,2]
[421425354,1777626725000,-500.0,9.609e-05,2]
[421425352,1777626725000,-500.0,9.609e-05,2]
[421425353,1777626725000,-500.0,9.609e-05,2]
[421425351,1777626725000,-500.0,9.609e-05,2]
[421425366,1777626725000,-500.0,9.609e-05,2]
[421425358,1777626725000,-500.0,9.609e-05,2]
[421425367,1777626725000,-387.3954321,9.609e-05,2]
[421425384,1777626725000,-500.0,9.609e-05,2]
[421425368,1777626725000,-500.0,9.609e-05,2]
[421425385,1777626725000,-500.0,9.609e-05,2]
[421425383,1777626725000,-500.0,9.609e-05,2]
[421425369,1777626725000,-500.0,9.609e-05,2]
[421425381,1777626725000,-500.0,9.609e-05,2]
[421425380,1777626725000,-338.73954321,9.609e-05,2]
[421425378,1777626725000,-500.0,9.609e-05,2]
[421425379,1777626725000,-500.0,9.609e-05,2]
[421425382,1777626725000,-500.0,9.609e-05,2]
[421425375,1777626725000,-500.0,9.609e-05,2]
[421425376,1777626725000,-500.0,9.609e-05,2]
[421425374,1777626725000,-500.0,9.609e-05,2]
[421425372,1777626725000,-500.0,9.609e-05,2]
[421425373,1777626725000,-500.0,9.609e-05,2]
[421425371,1777626725000,-500.0,9.609e-05,2]
[421425370,1777626725000,-500.0,9.609e-05,2]
[421425377,1777626725000,-500.0,9.609e-05,2]
[421425393,1777626726000,-500.0,9.609e-05,2]
[421425394,1777626726000,-500.0,9.609e-05,2]
[421425392,1777626726000,-500.0,9.609e-05,2]
[421425391,1777626726000,-500.0,9.609e-05,2]
[421425388,1777626726000,-500.0,9.609e-05,2]
[421425390,1777626726000,-500.0,9.609e-05,2]
[421425387,1777626726000,-500.0,9.609e-05,2]
[421425386,1777626726000,-500.0,9.609e-05,2]
[421425389,1777626726000,-500.0,9.609e-05,2]
[421425398,1777626726000,-500.0,9.609e-05,2]
[421425395,1777626726000,-500.0,9.609e-05,2]
[421425399,1777626726000,-500.0,9.609e-05,2]
[421425396,1777626726000,-500.0,9.609e-05,2]
[421425408,1777626726000,-36346.48419772,9.61e-05,2]
[421425406,1777626726000,-21894.15802144,9.61e-05,2]
[421425405,1777626726000,-500.0,9.609e-05,2]
[421425404,1777626726000,-500.0,9.609e-05,2]
[421425407,1777626726000,-1381.751098,9.61e-05,2]
[421425402,1777626726000,-500.0,9.609e-05,2]
[421425401,1777626726000,-500.0,9.609e-05,2]
[421425400,1777626726000,-500.0,9.609e-05,2]
[421425397,1777626726000,-500.0,9.609e-05,2]
[421425403,1777626726000,-500.0,9.609e-05,2]
[421425409,1777626727000,150.0,6.657e-05,2]
[421425413,1777626731000,-500.0,9.609e-05,2]
[421425412,1777626731000,-500.0,9.609e-05,2]
[421425410,1777626731000,-1138.21130598,9.342e-05,2]
[421425411,1777626731000,-61.78869402,9.342e-05,2]
[421425415,1777626731000,-500.0,9.609e-05,2]
[421425418,1777626731000,-384.88123349,9.609e-05,2]
[421425420,1777626731000,-443591.92563644,9.61e-05,2]
[421425416,1777626731000,-500.0,9.609e-05,2]
[421425414,1777626731000,-650.0,9.609e-05,2]
[421425419,1777626731000,-1884.88123349,9.609e-05,2]
[421425421,1777626731000,-7205.40950604,9.61e-05,2]
[421425422,1777626731000,-29330.55934614,9.61e-05,2]
[421425417,1777626731000,-500.0,9.609e-05,2]
[421425423,1777626732000,-380.52932165,9.61e-05,2]
[421425424,1777626732000,-349.32368,9.61e-05,2]
[421425425,1777626732000,-2353.57904216,9.61e-05,2]
[421425426,1777626732000,-74.61346277,9.61e-05,2]
[421425427,1777626732000,-300.0,9.61e-05,2]
[421425428,1777626732000,-2088.11203752,9.61e-05,2]
[421425430,1777626732000,-426.0,9.61e-05,2]
[421425433,1777626732000,-478.51655685,9.61e-05,2]
[421425429,1777626732000,-232.42155946,9.61e-05,2]
[421425431,1777626732000,-1339.817507,9.61e-05,2]
[421425432,1777626732000,-676.05694954,9.61e-05,2]
[421425441,1777626733000,-3191.13,9.61e-05,2]
[421425439,1777626733000,1087.74620711,9.609e-05,3]
[421425440,1777626733000,1087.74620711,9.927e-05,3]
[421425438,1777626733000,383.0,0.00011009,5]
[421425437,1777626733000,-2582.9914656,9.61e-05,2]
[421425436,1777626733000,-282.7539982,9.61e-05,2]
[421425435,1777626733000,-26485.43652747,9.61e-05,2]
[421425434,1777626733000,-16079.40137617,9.61e-05,2]
[421425442,1777626734000,152.0,9.612e-05,7]
[421425443,1777626734000,15048.332627,7.945e-05,2]
[421425444,1777626736000,239.0,6.657e-05,2]
[421425445,1777626754000,-508.6,9.024e-05,2]
[421425446,1777626769000,-10000.01,9.609e-05,2]
[421425448,1777626847000,-151.0,9.607e-05,2]
[421425450,1777626984000,180.42,7.711e-05,2]
[421425452,1777627039000,-155.0,9.608e-05,2]
[421425451,1777627039000,-155.0,9.608e-05,2]
[421425454,1777627040000,-10.0,9.609e-05,2]
[421425453,1777627040000,-145.0,9.608e-05,2]
[421425456,1777627042000,-155.0,9.608e-05,2]
[421425455,1777627042000,-155.0,9.609e-05,2]
[421425458,1777627043000,-155.0,9.51e-05,2]
[421425457,1777627043000,1999.45397,7.945e-05,2]
[421425460,1777627044000,-155.0,9.51e-05,2]
[421425459,1777627044000,-155.0,9.51e-05,2]
[421425461,1777627045000,-155.0,9.51e-05,2]
[421425462,1777627046000,-155.0,9.51e-05,2]
[421425463,1777627047000,-155.0,9.51e-05,2]
[421425464,1777627048000,-155.0,9.51e-05,2]
[421425465,1777627049000,-155.0,9.51e-05,2]
[421425466,1777627050000,-155.0,9.51e-05,2]
[421425467,1777627077000,-500.0,8.728e-05,2]
[421425468,1777627077000,-500.0,8.74e-05,2]
[421425469,1777627077000,-38919.3178,9.51e-05,2]
[421425470,1777627077000,-84628.2573,9.51e-05,2]
[421425482,1777627078000,-649.27576166,9.608e-05,2]
[421425484,1777627078000,-649.27576166,9.608e-05,2]
[421425483,1777627078000,-649.27576166,9.608e-05,2]
[421425481,1777627078000,-649.27576166,9.608e-05,2]
[421425480,1777627078000,-649.27576166,9.608e-05,2]
[421425479,1777627078000,-649.27576166,9.608e-05,2]
[421425478,1777627078000,-649.27576166,9.608e-05,2]
[421425473,1777627078000,-301.73208445,9.608e-05,2]
[421425476,1777627078000,-649.27576166,9.608e-05,2]
[421425474,1777627078000,-172.43015538,9.608e-05,2]
[421425475,1777627078000,-649.27576166,9.608e-05,2]
[421425471,1777627078000,-501.12537306,9.593e-05,2]
[421425472,1777627078000,-150.0,9.608e-05,2]
[421425485,1777627078000,-649.27576166,9.608e-05,2]
[421425477,1777627078000,-649.27576166,9.608e-05,2]
[421425486,1777627078000,-649.27576166,9.608e-05,2]
[421425492,1777627078000,-649.27576166,9.608e-05,2]
[421425487,1777627078000,-649.27576166,9.608e-05,2]
[421425502,1777627078000,-649.27576166,9.608e-05,2]
[421425501,1777627078000,-649.27576166,9.608e-05,2]
[421425500,1777627078000,-649.27576166,9.608e-05,2]
[421425498,1777627078000,-649.27576166,9.608e-05,2]
[421425499,1777627078000,-649.27576166,9.608e-05,2]
[421425497,1777627078000,-649.27576166,9.608e-05,2]
[421425495,1777627078000,-649.27576166,9.608e-05,2]
[421425488,1777627078000,-649.27576166,9.608e-05,2]
[421425494,1777627078000,-649.27576166,9.608e-05,2]
[421425489,1777627078000,-649.27576166,9.608e-05,2]
[421425490,1777627078000,-649.27576166,9.608e-05,2]
[421425496,1777627078000,-649.27576166,9.608e-05,2]
[421425503,1777627078000,-649.27576166,9.608e-05,2]
[421425493,1777627078000,-649.27576166,9.608e-05,2]
[421425491,1777627078000,-649.27576166,9.608e-05,2]
[421425518,1777627079000,-649.27576166,9.608e-05,2]
[421425519,1777627079000,-649.27576166,9.608e-05,2]
[421425517,1777627079000,-649.27576166,9.608e-05,2]
[421425516,1777627079000,-649.27576166,9.608e-05,2]
[421425513,1777627079000,-649.27576166,9.608e-05,2]
[421425515,1777627079000,-649.27576166,9.608e-05,2]
[421425514,1777627079000,-649.27576166,9.608e-05,2]
[421425510,1777627079000,-649.27576166,9.608e-05,2]
[421425511,1777627079000,-649.27576166,9.608e-05,2]
[421425520,1777627079000,-649.27576166,9.608e-05,2]
[421425507,1777627079000,-649.27576166,9.608e-05,2]
[421425508,1777627079000,-649.27576166,9.608e-05,2]
[421425506,1777627079000,-649.27576166,9.608e-05,2]
[421425505,1777627079000,-649.27576166,9.608e-05,2]
[421425504,1777627079000,-649.27576166,9.608e-05,2]
[421425512,1777627079000,-649.27576166,9.608e-05,2]
[421425509,1777627079000,-649.27576166,9.608e-05,2]
[421425521,1777627079000,-649.27576166,9.608e-05,2]
[421425523,1777627079000,-649.27576166,9.608e-05,2]
[421425540,1777627079000,-649.27576166,9.608e-05,2]
[421425539,1777627079000,-649.27576166,9.608e-05,2]
[421425537,1777627079000,-649.27576166,9.608e-05,2]
[421425538,1777627079000,-649.27576166,9.608e-05,2]
[421425522,1777627079000,-649.27576166,9.608e-05,2]
[421425535,1777627079000,-649.27576166,9.608e-05,2]
[421425533,1777627079000,-649.27576166,9.608e-05,2]
[421425534,1777627079000,-649.27576166,9.608e-05,2]
[421425536,1777627079000,-649.27576166,9.608e-05,2]
[421425531,1777627079000,-649.27576166,9.608e-05,2]
[421425532,1777627079000,-649.27576166,9.608e-05,2]
[421425524,1777627079000,-649.27576166,9.608e-05,2]
[421425527,1777627079000,-649.27576166,9.608e-05,2]
[421425525,1777627079000,-649.27576166,9.608e-05,2]
[421425528,1777627079000,-649.27576166,9.608e-05,2]
[421425530,1777627079000,-649.27576166,9.608e-05,2]
[421425529,1777627079000,-649.27576166,9.608e-05,2]
[421425526,1777627079000,-649.27576166,9.608e-05,2]
[421425542,1777627080000,-649.27576166,9.608e-05,2]
[421425547,1777627080000,-649.27576166,9.608e-05,2]
[421425544,1777627080000,-649.27576166,9.608e-05,2]
[421425545,1777627080000,-649.27576166,9.608e-05,2]
[421425546,1777627080000,-649.27576166,9.608e-05,2]
[421425543,1777627080000,-649.27576166,9.608e-05,2]
[421425541,1777627080000,-649.27576166,9.608e-05,2]
[421425548,1777627080000,-636.00668593,9.608e-05,2]
[421425549,1777627126000,-150.0,9.508e-05,2]
[421425551,1777627126000,-99550.0,9.509e-05,2]
[421425550,1777627126000,-300.0,9.508e-05,2]
[421425552,1777627149000,-10000.01,9.509e-05,2]
[421425553,1777627216000,-10000.01,9.509e-05,2]
[421425555,1777627217000,-32623.0,9.509e-05,2]
[421425554,1777627217000,-10000.01,9.509e-05,2]
[421425557,1777627256000,-10000.01,9.509e-05,2]
[421425556,1777627256000,-10000.01,9.509e-05,2]
[421425558,1777627257000,-1200.0,9.508e-05,2]
[421425559,1777627257000,-8800.01,9.509e-05,2]
[421425560,1777627257000,-35500.0,9.509e-05,2]
[421425561,1777627258000,-3495.7672631,9.509e-05,2]
[421425563,1777627259000,-5000.01,9.509e-05,2]
[421425562,1777627259000,-5000.01,9.509e-05,2]
[421425564,1777627262000,311.0,0.00011073,5]
[421425565,1777627283000,-300.0,9.508e-05,2]
[421425567,1777627296000,-300.0,9.508e-05,2]
[421425566,1777627296000,-150.0,9.508e-05,2]
[421425568,1777627296000,-300.0,9.508e-05,2]
[421425570,1777627296000,-500.0,9.508e-05,2]
[421425569,1777627296000,-500.0,9.508e-05,2]
[421425584,1777627297000,-500.0,9.508e-05,2]
[421425585,1777627297000,-500.0,9.508e-05,2]
[421425583,1777627297000,-500.0,9.508e-05,2]
[421425582,1777627297000,-500.0,9.508e-05,2]
[421425581,1777627297000,-500.0,9.508e-05,2]
[421425580,1777627297000,-500.0,9.508e-05,2]
[421425579,1777627297000,-500.0,9.508e-05,2]
[421425578,1777627297000,-500.0,9.508e-05,2]
[421425577,1777627297000,-500.0,9.508e-05,2]
[421425576,1777627297000,-500.0,9.508e-05,2]
[421425572,1777627297000,-308.19600094,9.508e-05,2]
[421425573,1777627297000,-500.0,9.508e-05,2]
[421425571,1777627297000,-247.32430727,9.508e-05,2]
[421425574,1777627297000,-500.0,9.508e-05,2]
[421425575,1777627297000,-500.0,9.508e-05,2]
[421425586,1777627297000,-500.0,9.508e-05,2]
[421425592,1777627297000,-500.0,9.508e-05,2]
[421425587,1777627297000,-500.0,9.508e-05,2]
[421425603,1777627297000,-2979.80205684,9.509e-05,2]
[421425602,1777627297000,-250.0,9.509e-05,2]
[421425588,1777627297000,-500.0,9.508e-05,2]
[421425601,1777627297000,-500.0,9.508e-05,2]
[421425599,1777627297000,-500.0,9.508e-05,2]
[421425598,1777627297000,-464.67763495,9.508e-05,2]
[421425597,1777627297000,-500.0,9.508e-05,2]
[421425600,1777627297000,-500.0,9.508e-05,2]
[421425595,1777627297000,-500.0,9.508e-05,2]
[421425594,1777627297000,-500.0,9.508e-05,2]
[421425593,1777627297000,-500.0,9.508e-05,2]
[421425591,1777627297000,-500.0,9.508e-05,2]
[421425590,1777627297000,-500.0,9.508e-05,2]
[421425589,1777627297000,-500.0,9.508e-05,2]
[421425596,1777627297000,-500.0,9.508e-05,2]
[421425604,1777627337000,-150.0,9.508e-05,2]
[421425607,1777627338000,-1217.502,9.46e-05,2]
[421425606,1777627338000,-3593.982,9.319e-05,2]
[421425605,1777627338000,-188.526,9.319e-05,2]
[421425608,1777627339000,-4814.90576,9.46e-05,2]
[421425609,1777627339000,-383.57209317,9.508e-05,2]
[421425610,1777627339000,-225.15299199,9.508e-05,2]
[421425611,1777627339000,-500.0,9.508e-05,2]
[421425613,1777627339000,-500.0,9.508e-05,2]
[421425612,1777627339000,-500.0,9.508e-05,2]
[421425615,1777627339000,-500.0,9.508e-05,2]
[421425616,1777627339000,-200.0,9.508e-05,2]
[421425617,1777627339000,-500.0,9.508e-05,2]
[421425618,1777627339000,-411.0490586,9.508e-05,2]
[421425619,1777627339000,-265.32009624,9.509e-05,2]
[421425620,1777627339000,-5000.01,9.509e-05,2]
[421425614,1777627339000,-500.0,9.508e-05,2]
[421425621,1777627340000,-533.57209317,9.509e-05,2]
[421425623,1777627373000,-830.0,9.409e-05,2]
[421425622,1777627373000,-270.0,9.319e-05,2]
[421425624,1777627443000,-271.0,9.409e-05,2]
[421425625,1777627550000,-835.7071,9.409e-05,2]
[421425628,1777627551000,-835.7071,9.48e-05,2]
[421425626,1777627551000,-300.0,9.479e-05,2]
[421425627,1777627551000,-535.7071,9.48e-05,2]
[421425629,1777627552000,-835.7071,9.479e-05,2]
[421425630,1777627552000,-364.2929,9.479e-05,2]
[421425631,1777627552000,-4635.7071,9.48e-05,2]
[421425636,1777627592000,615.9,5.446e-05,2]
[421425637,1777627592000,615.9,5.694e-05,2]
[421425635,1777627592000,615.9,5.199e-05,2]
[421425632,1777627592000,-5000.0,9.48e-05,2]
[421425633,1777627592000,615.9,4.703e-05,2]
[421425634,1777627592000,615.9,4.951e-05,2]
[421425645,1777627593000,615.9,7.427e-05,2]
[421425646,1777627593000,615.9,7.674e-05,2]
[421425644,1777627593000,615.9,7.179e-05,2]
[421425643,1777627593000,615.9,6.932e-05,2]
[421425640,1777627593000,615.9,6.436e-05,2]
[421425641,1777627593000,-835.7071,9.48e-05,2]
[421425639,1777627593000,615.9,6.189e-05,2]
[421425638,1777627593000,615.9,5.941e-05,2]
[421425642,1777627593000,615.9,6.684e-05,2]
[421425647,1777627593000,615.9,7.922e-05,2]
[421425650,1777627593000,615.9,8.664e-05,2]
[421425648,1777627593000,615.9,8.169e-05,2]
[421425651,1777627593000,300.0,8.663e-05,2]
[421425652,1777627593000,1200.0,7.673e-05,2]
[421425653,1777627593000,300.0,8.663e-05,2]
[421425654,1777627593000,1680.0,8.441e-05,2]
[421425656,1777627593000,-615.9,9.16e-05,2]
[421425655,1777627593000,-615.9,8.912e-05,2]
[421425657,1777627593000,-2351.0,9.285e-05,2]
[421425658,1777627593000,-615.9,9.407e-05,2]
[421425659,1777627593000,-801.3,9.48e-05,2]
[421425649,1777627593000,615.9,8.417e-05,2]
[421425661,1777627594000,-385.5173342,9.508e-05,2]
[421425662,1777627594000,-93.14637979,9.508e-05,2]
[421425660,1777627594000,-450.1897658,9.48e-05,2]
[421425664,1777627594000,-152.77581348,9.508e-05,2]
[421425665,1777627594000,-439.78490673,9.509e-05,2]
[421425663,1777627594000,-150.0,9.508e-05,2]
[421425670,1777627595000,-835.7071,9.509e-05,2]
[421425668,1777627595000,-38.87880725,9.509e-05,2]
[421425669,1777627595000,-54.73053465,9.509e-05,2]
[421425666,1777627595000,-150.0,9.395e-05,2]
[421425667,1777627595000,-150.0,9.395e-05,2]
[421425671,1777627597000,404.22,9.409e-05,2]
[421425672,1777627599000,500.0,9.409e-05,2]
[421425673,1777627607000,563.16,9.461e-05,2]
[421425675,1777627643000,-150.0,9.508e-05,2]
[421425674,1777627643000,-300.0,9.508e-05,2]
[421425677,1777627643000,-250.0,9.508e-05,2]
[421425676,1777627643000,-248.0,9.508e-05,2]
[421425679,1777627643000,-530.73410949,9.508e-05,2]
[421425678,1777627643000,-500.0,9.508e-05,2]
[421425681,1777627643000,-500.0,9.508e-05,2]
[421425682,1777627643000,-500.0,9.508e-05,2]
[421425687,1777627643000,-93202.99577688,9.509e-05,2]
[421425686,1777627643000,-478.66371398,9.509e-05,2]
[421425680,1777627643000,-500.0,9.508e-05,2]
[421425684,1777627643000,-373.50046522,9.508e-05,2]
[421425683,1777627643000,-516.4677635,9.508e-05,2]
[421425685,1777627643000,-1949.63817093,9.509e-05,2]
[421425690,1777627746000,-39322.53843898,9.509e-05,2]
[421425688,1777627746000,-300.0,9.508e-05,2]